lending/lending_fUSD_20240621
["ID","MTS","AMOUNT","RATE_DAILY","PERIOD"]
[330062527,1718977858225,-112.90231665,0.00021917,4]
[330062528,1718977858235,-143.05371509,0.00021917,4]
[330062529,1718977858247,-356.94628491,0.00021917,4]
[330062530,1718977858257,-64.62430581,0.00021917,4]
[330062531,1718977858339,-1539.59569419,0.00021917,4]
[330062532,1718977858349,-811.71,0.00021917,4]
[330062533,1718977858358,-961.24,0.00021917,4]
[330062534,1718977858368,-222.93519876,0.00021917,4]
[330062535,1718977858377,-1536.38,0.00021917,4]
[330062536,1718977858387,-8297.72,0.00021917,4]
[330062537,1718977858396,-1016.93,0.00021917,4]
[330062538,1718977858405,-54749.66,0.00021917,4]
[330062539,1718977858415,-4455.42,0.00021917,4]
[330062540,1718977858424,-2332.43,0.00021917,4]
[330062541,1718977858434,-2506.13,0.00021917,4]
[330062542,1718977858444,-500.0,0.00021917,4]
[330062543,1718977858454,-2428.12,0.00021917,4]
[330062544,1718977858464,-500.0,0.00021917,4]
[330062545,1718977858473,-52954.47,0.00021917,4]
[330062546,1718977858483,-500.0,0.00021917,4]
[330062547,1718977858495,-500.0,0.00021917,4]
[330062548,1718977858504,-1987.66,0.00021917,4]
[330062549,1718977858513,-1059.1,0.00021917,4]
[330062550,1718977858523,-500.0,0.00021917,4]
[330062551,1718977858533,-1501.38,0.00021917,4]
[330062552,1718977858544,-510.28,0.00021917,4]
[330062553,1718977858553,-15971.38,0.00021917,4]
[330062554,1718977858564,-1337.65,0.00021917,4]
[330062555,1718977858574,-500.0,0.00021917,4]
[330062556,1718977858584,-500.0,0.00021917,4]
[330062557,1718977858597,-500.0,0.00021917,4]
[330062558,1718977858607,-2144.7,0.00021917,4]
[330062559,1718977858616,-500.0,0.00021917,4]
[330062560,1718977858629,-953.76,0.00021917,4]
[330062561,1718977858641,-500.0,0.00021917,4]
[330062562,1718977858651,-2100.49,0.00021917,4]
[330062563,1718977858661,-2719.42,0.00021917,4]
[330062564,1718977858671,-3302.92,0.00021917,4]
[330062565,1718977858680,-294.14392712,0.00021917,4]
[330062566,1718977858690,-500.0,0.00021917,4]
[330062567,1718977858700,-767.41,0.00021917,4]
[330062568,1718977858709,-500.0,0.00021917,4]
[330062569,1718977858719,-1620.64,0.00021917,4]
[330062570,1718977858728,-502.00955814,0.00021917,4]
[330062571,1718977858738,-2329.47,0.00021917,4]
[330062572,1718977858747,-1752.36,0.00021917,4]
[330062573,1718977858757,-500.0,0.00021917,4]
[330062574,1718977858767,-7767.31,0.00021917,4]
[330062575,1718977858776,-500.0,0.00021917,4]
[330062576,1718977858787,-1290.87,0.00021917,4]
[330062577,1718977858796,-500.0,0.00021917,4]
[330062578,1718977858807,-775.62,0.00021917,4]
[330062579,1718977858817,-500.0,0.00021917,4]
[330062580,1718977858827,-897.44,0.00021917,4]
[330062581,1718977858837,-500.0,0.00021917,4]
[330062582,1718977858847,-1207.62,0.00021917,4]
[330062583,1718977858857,-836.01,0.00021917,4]
[330062584,1718977858866,-500.0,0.00021917,4]
[330062585,1718977858876,-1193.89,0.00021917,4]
[330062586,1718977858886,-4812.52,0.00021917,4]
[330062587,1718977858895,-601.13,0.00021917,4]
[330062588,1718977858905,-620.86,0.00021917,4]
[330062589,1718977858915,-500.0,0.00021917,4]
[330062590,1718977858924,-1310.32,0.00021917,4]
[330062591,1718977858934,-500.0,0.00021917,4]
[330062592,1718977858943,-500.0,0.00021917,4]
[330062593,1718977858953,-1394.37,0.00021917,4]
[330062594,1718977858963,-1493.49,0.00021917,4]
[330062595,1718977858972,-2901.43,0.00021917,4]
[330062596,1718977858982,-2040.2,0.00021917,4]
[330062597,1718977858994,-2418.55,0.00021917,4]
[330062598,1718977859004,-500.0,0.00021917,4]
[330062599,1718977859013,-500.0,0.00021917,4]
[330062600,1718977859023,-151.0,0.00021917,2]
[330062601,1718977859035,-151.0,0.00021917,2]
[330062602,1718977859045,-602.87,0.00021917,4]
[330062603,1718977859055,-151.0,0.00021917,2]
[330062604,1718977859064,-4894.78,0.00021917,4]
[330062605,1718977859077,-151.0,0.00021917,2]
[330062606,1718977859088,-151.0,0.00021917,2]
[330062607,1718977859097,-151.0,0.00021917,2]
[330062608,1718977859108,-914.23,0.00021917,4]
[330062609,1718977859117,-500.0,0.00021917,4]
[330062610,1718977859127,-752.01,0.00021917,4]
[330062611,1718977859136,-500.0,0.00021917,4]
[330062612,1718977859146,-679.94,0.00021917,4]
[330062613,1718977859156,-151.0,0.00021917,2]
[330062614,1718977859166,-500.0,0.00021917,4]
[330062615,1718977859175,-533.85,0.00021917,4]
[330062616,1718977859185,-3726.33,0.00021917,4]
[330062617,1718977859195,-665.03,0.00021917,4]
[330062618,1718977859317,-151.0,0.00021917,2]
[330062619,1718977859327,-2935.61,0.00021917,4]
[330062620,1718977859336,-589.57,0.00021917,4]
[330062621,1718977859346,-151.0,0.00021917,2]
[330062622,1718977859356,-151.0,0.00021917,2]
[330062623,1718977859367,-500.0,0.00021917,4]
[330062624,1718977859377,-151.0,0.00021917,2]
[330062625,1718977859387,-500.0,0.00021917,4]
[330062626,1718977859398,-151.0,0.00021917,2]
[330062627,1718977859408,-209.306323,0.00021917,2]
[330062628,1718977859418,-500.0,0.00021917,4]
[330062629,1718977859427,-622.76,0.00021917,4]
[330062630,1718977859436,-500.0,0.00021917,4]
[330062631,1718977859445,-2683.29,0.00021917,4]
[330062632,1718977859455,-4889.43,0.00021917,4]
[330062633,1718977859465,-2529.68,0.00021917,4]
[330062634,1718977859475,-500.0,0.00021917,4]
[330062635,1718977859484,-548.7,0.00021917,4]
[330062636,1718977859493,-500.0,0.00021917,4]
[330062637,1718977859503,-500.0,0.00021917,2]
[330062638,1718977859512,-2023.93,0.00021917,4]
[330062639,1718977859522,-293.42499802,0.00021917,4]
[330062640,1718977859532,-500.0,0.00021917,4]
[330062641,1718977859541,-533.13870526,0.00021917,4]
[330062642,1718977859550,-3140.5,0.00021917,4]
[330062643,1718977859560,-666.22,0.00021917,4]
[330062644,1718977859570,-500.0,0.00021917,4]
[330062645,1718977859580,-500.0,0.00021917,4]
[330062646,1718977859589,-932.52,0.00021917,4]
[330062647,1718977859599,-500.0,0.00021917,4]
[330062648,1718977859609,-500.0,0.00021917,4]
[330062649,1718977859618,-569.05,0.00021917,4]
[330062650,1718977859628,-564.43,0.00021917,4]
[330062651,1718977859637,-500.0,0.00021917,4]
[330062652,1718977859647,-1045.51,0.00021917,4]
[330062653,1718977859656,-3029.79,0.00021917,4]
[330062654,1718977859666,-1282.89,0.00021917,4]
[330062655,1718977859675,-500.0,0.00021917,4]
[330062656,1718977859685,-500.0,0.00021917,4]
[330062657,1718977859695,-953.46,0.00021917,4]
[330062658,1718977859706,-7507.67,0.00021917,4]
[330062659,1718977859716,-20932.19,0.00021917,4]
[330062660,1718977859726,-500.0,0.00021917,4]
[330062661,1718977859735,-887.86,0.00021917,4]
[330062662,1718977859744,-500.0,0.00021917,4]
[330062663,1718977859753,-500.0,0.00021917,4]
[330062664,1718977859763,-500.0,0.00021917,4]
[330062665,1718977859772,-3092.06,0.00021917,4]
[330062666,1718977859782,-500.0,0.00021917,4]
[330062667,1718977859791,-500.0,0.00021917,4]
[330062668,1718977859800,-500.0,0.00021917,4]
[330062669,1718977859809,-500.0,0.00021917,4]
[330062670,1718977859820,-2262.21,0.00021917,4]
[330062671,1718977859829,-500.0,0.00021917,4]
[330062672,1718977859838,-500.0,0.00021917,4]
[330062673,1718977859847,-1031.32,0.00021917,4]
[330062674,1718977859857,-500.0,0.00021917,4]
[330062675,1718977859867,-500.0,0.00021917,4]
[330062676,1718977859876,-1957.33,0.00021917,4]
[330062677,1718977859885,-843.38,0.00021917,4]
[330062678,1718977859895,-6517.25,0.00021917,4]
[330062679,1718977859904,-2729.36,0.00021917,4]
[330062680,1718977859913,-500.0,0.00021917,4]
[330062681,1718977859923,-1000.0,0.00021917,5]
[330062682,1718977859932,-500.0,0.00021917,4]
[330062683,1718977859941,-1458.91,0.00021917,4]
[330062684,1718977859951,-8838.78,0.00021917,4]
[330062685,1718977859962,-1508.33,0.00021917,4]
[330062686,1718977859984,-500.0,0.00021917,4]
[330062687,1718977860006,-500.0,0.00021917,4]
[330062688,1718977860019,-500.0,0.00021917,4]
[330062689,1718977860029,-250.0,0.00021917,4]
[330062690,1718977860039,-500.0,0.00021917,4]
[330062691,1718977860049,-500.0,0.00021917,4]
[330062692,1718977860058,-716.99,0.00021917,4]
[330062693,1718977860068,-500.0,0.00021917,4]
[330062694,1718977860078,-500.0,0.00021917,4]
[330062695,1718977860087,-245.86,0.00021917,4]
[330062696,1718977860097,-1737.79,0.00021917,4]
[330062697,1718977860107,-500.0,0.00021917,4]
[330062698,1718977860116,-841.71,0.00021917,4]
[330062699,1718977860126,-3735.45,0.00021917,4]
[330062700,1718977860135,-1819.41,0.00021917,4]
[330062701,1718977860145,-516.81,0.00021917,4]
[330062702,1718977860154,-1679.94,0.00021917,4]
[330062703,1718977860163,-3503.89,0.00021917,4]
[330062704,1718977860172,-151.0,0.00021917,2]
[330062705,1718977860181,-151.0,0.00021917,2]
[330062706,1718977860190,-682.35,0.00021917,4]
[330062707,1718977860199,-500.0,0.00021917,4]
[330062708,1718977860208,-151.558259,0.00021917,2]
[330062709,1718977860218,-2155.2,0.00021917,4]
[330062710,1718977860227,-8659.77,0.00021917,4]
[330062711,1718977860236,-500.0,0.00021917,4]
[330062712,1718977860245,-500.0,0.00021917,4]
[330062713,1718977860255,-829.59,0.00021917,4]
[330062714,1718977860264,-592.39,0.00021917,4]
[330062715,1718977860273,-500.0,0.00021917,4]
[330062716,1718977860282,-1919.77,0.00021917,4]
[330062717,1718977860292,-500.0,0.00021917,4]
[330062718,1718977860302,-500.0,0.00021917,4]
[330062719,1718977860311,-500.0,0.00021917,2]
[330062720,1718977860322,-1695.2,0.00021917,4]
[330062721,1718977860332,-748.52,0.00021917,4]
[330062722,1718977860342,-305.74036439,0.00021917,4]
[330062723,1718977860352,-676.65,0.00021917,4]
[330062724,1718977860363,-2433.11,0.00021917,4]
[330062725,1718977860372,-500.0,0.00021917,4]
[330062726,1718977860382,-1518.6,0.00021917,4]
[330062727,1718977860391,-500.0,0.00021917,4]
[330062728,1718977860406,-551.43123881,0.00021917,4]
[330062729,1718977860415,-5462.93,0.00021917,4]
[330062730,1718977860425,-719.04,0.00021917,4]
[330062731,1718977860434,-1931.17,0.00021917,4]
[330062732,1718977860443,-500.0,0.00021917,4]
[330062733,1718977860452,-500.0,0.00021917,4]
[330062734,1718977860462,-4313.93,0.00021917,4]
[330062735,1718977860471,-500.0,0.00021917,4]
[330062736,1718977860480,-5771.95,0.00021917,4]
[330062737,1718977860490,-500.0,0.00021917,4]
[330062738,1718977860499,-919.3,0.00021917,4]
[330062739,1718977860508,-500.0,0.00021917,4]
[330062740,1718977860517,-3045.66,0.00021917,4]
[330062741,1718977860527,-2391.2,0.00021917,4]
[330062742,1718977860537,-988.83,0.00021917,4]
[330062743,1718977860546,-500.0,0.00021917,4]
[330062744,1718977860555,-500.0,0.00021917,4]
[330062745,1718977860566,-515.56173812,0.00021917,4]
[330062746,1718977860578,-500.0,0.00021917,4]
[330062747,1718977860587,-1010.81,0.00021917,4]
[330062748,1718977860596,-1183.83,0.00021917,4]
[330062749,1718977860608,-500.0,0.00021917,4]
[330062750,1718977860619,-500.0,0.00021917,4]
[330062751,1718977860627,-1096.28,0.00021917,4]
[330062752,1718977860638,-500.0,0.00021917,4]
[330062753,1718977860647,-500.0,0.00021917,4]
[330062754,1718977860657,-151.0,0.00021917,2]
[330062755,1718977860666,-1013.61,0.00021917,4]
[330062756,1718977860676,-500.0,0.00021917,4]
[330062757,1718977860685,-6900.78,0.00021917,4]
[330062758,1718977860694,-7317.12,0.00021917,4]
[330062759,1718977860703,-32042.17,0.00021917,4]
[330062760,1718977860714,-1334.3,0.00021917,4]
[330062761,1718977860723,-500.0,0.00021917,4]
[330062762,1718977860732,-1928.54,0.00021917,4]
[330062763,1718977860742,-500.0,0.00021917,4]
[330062764,1718977860751,-500.0,0.00021917,4]
[330062765,1718977860761,-500.0,0.00021917,4]
[330062766,1718977860771,-500.0,0.00021917,4]
[330062767,1718977860781,-500.0,0.00021917,4]
[330062768,1718977860790,-705.14,0.00021917,4]
[330062769,1718977860802,-500.0,0.00021917,4]
[330062770,1718977860811,-676.85,0.00021917,4]
[330062771,1718977860824,-1445.26,0.00021917,4]
[330062772,1718977860833,-502.95811393,0.00021917,4]
[330062773,1718977860842,-500.0,0.00021917,4]
[330062774,1718977860851,-500.0,0.00021917,4]
[330062775,1718977860860,-500.0,0.00021917,4]
[330062776,1718977860870,-500.0,0.00021917,4]
[330062777,1718977860879,-827.34,0.00021917,4]
[330062778,1718977860889,-500.0,0.00021917,4]
[330062779,1718977860898,-500.0,0.00021917,4]
[330062780,1718977860908,-3231.17,0.00021917,4]
[330062781,1718977860917,-777.14,0.00021917,4]
[330062782,1718977860926,-500.0,0.00021917,4]
[330062783,1718977860935,-537.79,0.00021917,4]
[330062784,1718977860945,-500.0,0.00021917,4]
[330062785,1718977860954,-9470.88,0.00021917,4]
[330062786,1718977860964,-966.09,0.00021917,4]
[330062787,1718977860973,-1960.54,0.00021917,4]
[330062788,1718977860982,-500.0,0.00021917,4]
[330062789,1718977860994,-500.0,0.00021917,4]
[330062790,1718977861003,-4593.91,0.00021917,4]
[330062791,1718977861012,-570.05,0.00021917,4]
[330062792,1718977861022,-500.0,0.00021917,4]
[330062793,1718977861032,-500.0,0.00021917,4]
[330062794,1718977861042,-500.0,0.00021917,4]
[330062795,1718977861051,-576.25,0.00021917,4]
[330062796,1718977861061,-937.89,0.00021917,4]
[330062797,1718977861074,-627.17,0.00021917,4]
[330062798,1718977861083,-9227.17,0.00021917,4]
[330062799,1718977861094,-1096.9,0.00021917,4]
[330062800,1718977861105,-754.39,0.00021917,4]
[330062801,1718977861114,-500.0,0.00021917,4]
[330062802,1718977861124,-500.0,0.00021917,4]
[330062803,1718977861134,-627.71,0.00021917,4]
[330062804,1718977861143,-500.0,0.00021917,4]
[330062805,1718977861152,-19106.58,0.00021917,4]
[330062806,1718977861161,-645.39,0.00021917,4]
[330062807,1718977861171,-337.85492021,0.00021917,4]
[330062808,1718977861180,-2393.34,0.00021917,4]
[330062809,1718977861189,-500.0,0.00021917,4]
[330062810,1718977861198,-2942.75,0.00021917,4]
[330062811,1718977861207,-1634.61,0.00021917,4]
[330062812,1718977861216,-500.0,0.00021917,4]
[330062813,1718977861225,-812.92,0.00021917,4]
[330062814,1718977861234,-580.82,0.00021917,4]
[330062815,1718977861243,-500.0,0.00021917,4]
[330062816,1718977861252,-600.78,0.00021917,4]
[330062817,1718977861261,-500.0,0.00021917,4]
[330062818,1718977861270,-1553.41,0.00021917,4]
[330062819,1718977861280,-3345.23,0.00021917,4]
[330062820,1718977861289,-500.0,0.00021917,4]
[330062821,1718977861298,-500.0,0.00021917,4]
[330062822,1718977861307,-2401.97,0.00021917,4]
[330062823,1718977861317,-511.96,0.00021917,4]
[330062824,1718977861331,-3895.63,0.00021917,4]
[330062825,1718977861340,-500.0,0.00021917,4]
[330062826,1718977861348,-500.21989421,0.00021917,4]
[330062827,1718977861357,-628.03546043,0.00021917,4]
[330062828,1718977861366,-1011.29,0.00021917,4]
[330062829,1718977861377,-4155.84,0.00021917,4]
[330062830,1718977861386,-1457.2,0.00021917,4]
[330062831,1718977861394,-1625.66,0.00021917,4]
[330062832,1718977861403,-500.0,0.00021917,4]
[330062833,1718977861412,-574.48,0.00021917,4]
[330062834,1718977861420,-833.8,0.00021917,4]
[330062835,1718977861429,-521.09,0.00021917,4]
[330062836,1718977861438,-500.0,0.00021917,4]
[330062837,1718977861447,-500.0,0.00021917,4]
[330062838,1718977861455,-500.0,0.00021917,4]
[330062839,1718977861465,-500.0,0.00021917,4]
[330062840,1718977861475,-784.28,0.00021917,4]
[330062841,1718977861484,-500.0,0.00021917,4]
[330062842,1718977861493,-500.0,0.00021917,4]
[330062843,1718977861501,-808.09,0.00021917,4]
[330062844,1718977861511,-500.0,0.00021917,4]
[330062845,1718977861521,-500.0,0.00021917,4]
[330062846,1718977861531,-632.72,0.00021917,4]
[330062847,1718977861541,-500.0,0.00021917,4]
[330062848,1718977861550,-500.0,0.00021917,4]
[330062849,1718977861560,-1628.19,0.00021917,4]
[330062850,1718977861574,-500.0,0.00021917,4]
[330062851,1718977861583,-500.0,0.00021917,4]
[330062852,1718977861592,-1433.13,0.00021917,4]
[330062853,1718977861601,-625.48,0.00021917,4]
[330062854,1718977861610,-997.43,0.00021917,4]
[330062855,1718977861619,-908.67,0.00021917,4]
[330062856,1718977861628,-12319.62,0.00021917,4]
[330062857,1718977861637,-500.0,0.00021917,4]
[330062858,1718977861647,-962.33,0.00021917,4]
[330062859,1718977861656,-2833.68,0.00021917,4]
[330062860,1718977861666,-529.6443264,0.00021917,4]
[330062861,1718977861675,-1380.19,0.00021917,4]
[330062862,1718977861685,-500.0,0.00021917,4]
[330062863,1718977861694,-6009.67,0.00021917,4]
[330062864,1718977861703,-500.0,0.00021917,4]
[330062865,1718977861712,-500.0,0.00021917,4]
[330062866,1718977861721,-719.68,0.00021917,4]
[330062867,1718977861730,-5554.15,0.00021917,4]
[330062868,1718977861738,-500.0,0.00021917,4]
[330062869,1718977861748,-500.0,0.00021917,4]
[330062870,1718977861757,-4428.02,0.00021917,4]
[330062871,1718977861766,-500.0,0.00021917,4]
[330062872,1718977861775,-685.86,0.00021917,4]
[330062873,1718977861784,-500.0,0.00021917,4]
[330062874,1718977861794,-500.0,0.00021917,4]
[330062875,1718977861803,-500.0,0.00021917,4]
[330062876,1718977861812,-500.0,0.00021917,4]
[330062877,1718977861823,-500.0,0.00021917,4]
[330062878,1718977861832,-500.0,0.00021917,4]
[330062879,1718977861841,-890.35,0.00021917,4]
[330062880,1718977861851,-500.0,0.00021917,4]
[330062881,1718977861860,-500.0,0.00021917,4]
[330062882,1718977861870,-1963.72,0.00021917,4]
[330062883,1718977861879,-500.0,0.00021917,4]
[330062884,1718977861888,-500.0,0.00021917,4]
[330062885,1718977861897,-500.0,0.00021917,4]
[330062886,1718977861906,-500.0,0.00021917,4]
[330062887,1718977861915,-1108.72,0.00021917,4]
[330062888,1718977861924,-600.24,0.00021917,4]
[330062889,1718977861935,-532.03,0.00021917,4]
[330062890,1718977861946,-500.0,0.00021917,4]
[330062891,1718977861957,-961.46,0.00021917,4]
[330062892,1718977861967,-812.01,0.00021917,4]
[330062893,1718977861976,-628.25,0.00021917,4]
[330062894,1718977861989,-3309.22,0.00021917,4]
[330062895,1718977862001,-500.0,0.00021917,4]
[330062896,1718977862011,-2957.97,0.00021917,4]
[330062897,1718977862020,-2585.94,0.00021917,4]
[330062898,1718977862030,-1371.13,0.00021917,4]
[330062899,1718977862038,-425.09569102,0.00021917,4]
[330062900,1718977862048,-500.0,0.00021917,4]
[330062901,1718977862057,-38492.14,0.00021917,4]
[330062902,1718977862067,-10082.51,0.00021917,4]
[330062903,1718977862079,-1351.78,0.00021917,4]
[330062904,1718977862089,-770.43,0.00021917,4]
[330062905,1718977862098,-1669.8,0.00021917,4]
[330062906,1718977862107,-612.968945,0.00021917,2]
[330062907,1718977862116,-500.0,0.00021917,4]
[330062908,1718977862125,-612.968945,0.00021917,2]
[330062909,1718977862135,-612.968945,0.00021917,2]
[330062910,1718977862144,-500.0,0.00021917,4]
[330062911,1718977862154,-612.968945,0.00021917,2]
[330062912,1718977862164,-686.95,0.00021917,4]
[330062913,1718977862173,-612.968945,0.00021917,2]
[330062914,1718977862182,-871.26,0.00021917,4]
[330062915,1718977862192,-612.968945,0.00021917,2]
[330062916,1718977862201,-612.968945,0.00021917,2]
[330062917,1718977862210,-1129.48,0.00021917,4]
[330062918,1718977862220,-612.968945,0.00021917,2]
[330062919,1718977862230,-612.968945,0.00021917,2]
[330062920,1718977862239,-500.0,0.00021917,4]
[330062921,1718977862249,-502.52310544,0.00021917,4]
[330062922,1718977862258,-612.968945,0.00021917,2]
[330062923,1718977862268,-612.968945,0.00021917,2]
[330062924,1718977862277,-2685.34,0.00021917,4]
[330062925,1718977862286,-5664.69,0.00021917,4]
[330062926,1718977862296,-500.0,0.00021917,4]
[330062927,1718977862305,-612.968942,0.00021917,2]
[330062928,1718977862316,-500.0,0.00021917,4]
[330062929,1718977862330,-3379.17,0.00021917,4]
[330062930,1718977862340,-2073.89,0.00021917,4]
[330062931,1718977862350,-500.0,0.00021917,4]
[330062932,1718977862360,-796.02,0.00021917,4]
[330062933,1718977862370,-500.0,0.00021917,4]
[330062934,1718977862379,-500.0,0.00021917,4]
[330062935,1718977862389,-533.71222749,0.00021917,4]
[330062936,1718977862398,-790.32,0.00021917,4]
[330062937,1718977862407,-584.91,0.00021917,4]
[330062938,1718977862417,-890.36,0.00021917,4]
[330062939,1718977862426,-694.79,0.00021917,4]
[330062940,1718977862435,-500.0,0.00021917,4]
[330062941,1718977862444,-500.0,0.00021917,4]
[330062942,1718977862454,-500.0,0.00021917,4]
[330062943,1718977862463,-1187.35,0.00021917,4]
[330062944,1718977862472,-3018.42,0.00021917,4]
[330062945,1718977862481,-500.0,0.00021917,4]
[330062946,1718977862490,-3505.26,0.00021917,4]
[330062947,1718977862500,-1181.97,0.00021917,4]
[330062948,1718977862509,-500.0,0.00021917,4]
[330062949,1718977862519,-1442.02,0.00021917,4]
[330062950,1718977862528,-4680.18,0.00021917,4]
[330062951,1718977862538,-2447.97,0.00021917,4]
[330062952,1718977862547,-642.27,0.00021917,4]
[330062953,1718977862557,-1032.07,0.00021917,4]
[330062954,1718977862572,-4651.72,0.00021917,4]
[330062955,1718977862582,-500.0,0.00021917,4]
[330062956,1718977862591,-500.0,0.00021917,4]
[330062957,1718977862600,-539.52,0.00021917,4]
[330062958,1718977862609,-264.52490743,0.00021917,2]
[330062959,1718977862618,-500.0,0.00021917,4]
[330062960,1718977862628,-500.0,0.00021917,4]
[330062961,1718977862637,-500.0,0.00021917,4]
[330062962,1718977862645,-2190.31,0.00021917,4]
[330062963,1718977862654,-500.0,0.00021917,4]
[330062964,1718977862664,-1470.95,0.00021917,4]
[330062965,1718977862674,-500.0,0.00021917,4]
[330062966,1718977862682,-1757.27,0.00021917,4]
[330062967,1718977862691,-833.92,0.00021917,4]
[330062968,1718977862702,-1244.52,0.00021917,4]
[330062969,1718977862712,-500.0,0.00021917,4]
[330062970,1718977862722,-500.0,0.00021917,4]
[330062971,1718977862731,-2318.88,0.00021917,4]
[330062972,1718977862740,-3744.94,0.00021917,4]
[330062973,1718977862749,-500.0,0.00021917,4]
[330062974,1718977862760,-500.0,0.00021917,4]
[330062975,1718977862771,-500.0,0.00021917,4]
[330062976,1718977862781,-500.0,0.00021917,4]
[330062977,1718977862791,-1067.86,0.00021917,4]
[330062978,1718977862800,-500.0,0.00021917,4]
[330062979,1718977862812,-5437.81,0.00021917,4]
[330062980,1718977862832,-524.84224974,0.00021917,4]
[330062981,1718977862841,-500.0,0.00021917,4]
[330062982,1718977862850,-500.0,0.00021917,4]
[330062983,1718977862859,-8186.65,0.00021917,4]
[330062984,1718977862870,-1190.98,0.00021917,4]
[330062985,1718977862879,-968.77,0.00021917,4]
[330062986,1718977862889,-500.0,0.00021917,4]
[330062987,1718977862898,-500.0,0.00021917,4]
[330062988,1718977862908,-500.0,0.00021917,4]
[330062989,1718977862918,-541.17003912,0.00021917,4]
[330062990,1718977862928,-18198.25,0.00021917,4]
[330062991,1718977862938,-503.90196363,0.00021917,4]
[330062992,1718977862948,-500.0,0.00021917,4]
[330062993,1718977862958,-500.0,0.00021917,4]
[330062994,1718977862969,-1581.24,0.00021917,4]
[330062995,1718977862979,-955.39,0.00021917,4]
[330062996,1718977862992,-1383.09,0.00021917,4]
[330062997,1718977863006,-569.65,0.00021917,4]
[330062998,1718977863015,-3655.58,0.00021917,4]
[330062999,1718977863024,-500.0,0.00021917,4]
[330063000,1718977863035,-2581.02,0.00021917,4]
[330063001,1718977863044,-500.0,0.00021917,4]
[330063002,1718977863053,-500.0,0.00021917,4]
[330063003,1718977863063,-608.95,0.00021917,4]
[330063004,1718977863079,-500.0,0.00021917,4]
[330063005,1718977863089,-500.0,0.00021917,4]
[330063006,1718977863097,-500.0,0.00021917,4]
[330063007,1718977863107,-500.0,0.00021917,4]
[330063008,1718977863118,-500.0,0.00021917,4]
[330063009,1718977863127,-500.0,0.00021917,4]
[330063010,1718977863136,-589.58,0.00021917,4]
[330063011,1718977863146,-612.07,0.00021917,4]
[330063012,1718977863156,-1194.99,0.00021917,4]
[330063013,1718977863167,-603.18,0.00021917,4]
[330063014,1718977863177,-1033.69,0.00021917,4]
[330063015,1718977863186,-3011.74,0.00021917,4]
[330063016,1718977863195,-5278.13,0.00021917,4]
[330063017,1718977863204,-2032.32,0.00021917,4]
[330063018,1718977863213,-3021.18,0.00021917,4]
[330063019,1718977863223,-1528.33,0.00021917,4]
[330063020,1718977863232,-2133.51,0.00021917,4]
[330063021,1718977863241,-540.27,0.00021917,4]
[330063022,1718977863252,-569.46,0.00021917,4]
[330063023,1718977863261,-500.0,0.00021917,4]
[330063024,1718977863272,-1538.66,0.00021917,4]
[330063025,1718977863281,-500.0,0.00021917,4]
[330063026,1718977863291,-2122.61,0.00021917,4]